[Event "21st Sants Open 2019"]
[Site "Cotxeres de Sants"]
[Date "2019.08.29"]
[Round "7.11"]
[White "Brochet, Philippe"]
[Black "Garriga Cazorla, Pere"]
[Result "1/2-1/2"]
[ECO "B24"]
[WhiteElo "2400"]
[BlackElo "2495"]
[Annotator "ChessBase"]
[PlyCount "72"]
[EventDate "2019.08.22"]
[EventType "swiss"]
[EventCountry "ESP"]
[SourceTitle "playchess.com"]
[Source "ChessBase"]
[SourceQuality "1"]
[TimeControl "40/5400+30:1800+30"]

1. e4 {[%emt 0:00:00]} c5 {[%emt 0:00:00]} 2. Nc3 {[%emt 0:00:00]} Nc6 {[%emt 0:00:00]} 3. Bb5 {[%emt 0:00:00]} Nd4 {[%emt 0:00:00]} 4. Nge2 {[%emt 0:00:00]} a6 {[%emt 0:00:08]} 5. Bc4 {[%emt 0:00:49]} b5 {[%emt 0:00:16]} 6. Bd5 {[%emt 0:00:04]} Rb8 {[%emt 0:00:03]} 7. a3 {[%emt 0:00:09]} e6 {[%emt 0:03:36]} 8. Ba2 {[%emt 0:00:04]} g6 {[%emt 0:01:02]} 9. d3 {[%emt 0:04:37]} Bg7 {[%emt 0:01:02]} 10. Bf4 {[%emt 0:00:51]} d6 {[%emt 0:00:18]} 11. Nxd4 {[%emt 0:03:13]} cxd4 {[%emt 0:00:53]} 12. Ne2 {[%emt 0:00:04]} Ne7 {[%emt 0:00:56]} 13. Qd2 {[%emt 0:00:30]} h6 {[%emt 0:00:02]} 14. O-O {[%emt 0:09:21]} a5 {[%emt 0:13:16]} 15. c3 {[%emt 0:06:09]} e5 {[%emt 0:04:15]} 16. Bg3 {[%emt 0:02:52]} dxc3 {[%emt 0:00:01]} 17. bxc3 {[%emt 0:01:08]} O-O {[%emt 0:00:42]} 18. f4 {[%emt 0:05:43]} Be6 {[%emt 0:21:23]} 19. Bxe6 {[%emt 0:01:14]} fxe6 {[%emt 0:00:02]} 20. fxe5 {[%emt 0:06:20]} Rxf1+ {[%emt 0:04:01]} 21. Rxf1 {[%emt 0:00:03]} dxe5 {[%emt 0:00:06]} 22. Qa2 {[%emt 0:19:13]} Qd7 {[%emt 0:05:36]} 23. d4 {[%emt 0:05:08]} Rf8 {[%emt 0:01:26]} 24. Rxf8+ {[%emt 0:09:05]} Kxf8 {[%emt 0:00:28]} 25. Bxe5 {[%emt 0:01:51]} Bxe5 {[%emt 0:00:07]} 26. dxe5 {[%emt 0:00:03]} Nc6 {[%emt 0:00:27]} 27. Qb3 {[%emt 0:14:00]} Nxe5 {[%emt 0:09:47]} 28. Nd4 {[%emt 0:00:06]} Ke7 {[%emt 0:00:04]} 29. h3 {[%emt 0:01:54]} Nd3 {[%emt 0:01:27]} 30. Nxb5 {[%emt 0:00:41]} Qc6 {[%emt 0:00:52]} 31. Qa4 {[%emt 0:01:29]} Qc5+ {[%emt 0:02:44]} 32. Kh1 {[%emt 0:01:15]} Qe3 {[%emt 0:04:29]} 33. Qxa5 {[%emt 0:01:24]} Qc1+ {[%emt 0:01:15]} 34. Kh2 {[%emt 0:00:05]} Qf4+ {[%emt 0:00:06]} 35. Kg1 {[%emt 0:01:22]} Qc1+ {[%emt 0:00:33]} 36. Kh2 {[%emt 0:00:05]} Qf4+ 1/2-1/2

[Event "21st Sants Open 2019"]
[Site "Cotxeres de Sants"]
[Date "2019.08.29"]
[Round "7.12"]
[White "Umetsubo, Cesar Hidemitsu"]
[Black "Harika, Dronavalli"]
[Result "1/2-1/2"]
[ECO "B25"]
[WhiteElo "2396"]
[BlackElo "2495"]
[Annotator "ChessBase"]
[PlyCount "48"]
[EventDate "2019.08.22"]
[EventType "swiss"]
[EventCountry "ESP"]
[SourceTitle "playchess.com"]
[Source "ChessBase"]
[SourceQuality "1"]
[TimeControl "40/5400+30:1800+30"]

1. e4 {[%emt 0:00:11]} c5 {[%emt 0:02:16]} 2. Nc3 {[%emt 0:02:42]} Nc6 {[%emt 0:00:33]} 3. g3 {[%emt 0:00:49]} g6 {[%emt 0:00:08]} 4. Bg2 {[%emt 0:00:17]} Bg7 {[%emt 0:00:06]} 5. d3 {[%emt 0:00:51]} d6 {[%emt 0:00:06]} 6. f4 {[%emt 0:04:28]} e6 {[%emt 0:00:44]} 7. Nf3 {[%emt 0:00:31]} Nge7 {[%emt 0:00:23]} 8. O-O {[%emt 0:00:38]} O-O {[%emt 0:00:09]} 9. Be3 {[%emt 0:00:34]} b6 {[%emt 0:00:20]} 10. d4 {[%emt 0:10:38]} Ba6 {[%emt 0:00:10]} 11. Rf2 {[%emt 0:00:25]} d5 {[%emt 0:19:00]} 12. Rd2 {[%emt 0:09:13]} Na5 {[%emt 0:10:10]} 13. b3 {[%emt 0:04:58]} Rc8 {[%emt 0:21:18]} 14. Ne5 {[%emt 0:18:49]} cxd4 {[%emt 0:11:09]} 15. Bxd4 {[%emt 0:00:19]} Nac6 {[%emt 0:00:35]} 16. Nxc6 {[%emt 0:00:46]} Rxc6 {[%emt 0:00:06]} 17. Bxg7 {[%emt 0:02:15]} Kxg7 {[%emt 0:00:04]} 18. Ne2 {[%emt 0:01:23]} Bxe2 {[%emt 0:00:39]} 19. Qxe2 {[%emt 0:01:16]} Rc3 {[%emt 0:07:55]} 20. exd5 {[%emt 0:02:20]} Nxd5 {[%emt 0:00:14]} 21. Bxd5 {[%emt 0:17:13]} exd5 {[%emt 0:00:16]} 22. Qe5+ {[%emt 0:00:13]} Qf6 {[%emt 0:00:06]} 23. Re1 {[%emt 0:01:12]} Rfc8 {[%emt 0:03:17]} 24. Qxf6+ {[%emt 0:01:22]} Kxf6 {[%emt 0:00:04]} 1/2-1/2

[Event "21st Sants Open 2019"]
[Site "Cotxeres de Sants"]
[Date "2019.08.29"]
[Round "7.13"]
[White "Lettieri, Giuseppe"]
[Black "Fernandez Diaz, Cristian"]
[Result "*"]
[ECO "A46"]
[WhiteElo "2431"]
[BlackElo "2303"]
[Annotator "NA"]
[PlyCount "87"]
[EventDate "2019.08.22"]
[EventType "swiss"]
[EventCountry "ESP"]
[SourceTitle "playchess.com"]
[Source "ChessBase"]
[SourceQuality "1"]
[TimeControl "40/5400+30:1800+30"]

1. d4 {[%emt 0:00:00]} e6 {[%emt 0:04:57]} 2. Nf3 {[%emt 0:00:00]} Nf6 {[%emt 0:00:33]} 3. e3 {[%emt 0:00:15]} d5 {[%emt 0:01:22]} 4. c4 {[%emt 0:00:15]} b6 {[%emt 0:00:53]} 5. Nc3 {[%emt 0:00:14]} Bb7 {[%emt 0:00:14]} 6. Bd3 {[%emt 0:01:03]} Bd6 {[%emt 0:04:13]} 7. O-O {[%emt 0:00:15]} O-O {[%emt 0:00:52]} 8. Qe2 {[%emt 0:00:24]} Nbd7 {[%emt 0:05:45]} 9. e4 {[%emt 0:00:21]} dxe4 {[%emt 0:08:32]} 10. Nxe4 {[%emt 0:00:10]} Nxe4 {[%emt 0:00:11]} 11. Bxe4 {[%emt 0:00:07]} Bxe4 {[%emt 0:01:36]} 12. Qxe4 {[%emt 0:00:06]} c5 {[%emt 0:00:37]} 13. Rd1 {[%emt 0:01:24]} Qc7 {[%emt 0:03:37]} 14. Bg5 {[%emt 0:04:30]} Rfe8 {[%emt 0:14:13]} 15. Qd3 {[%emt 0:03:05]} Nf8 {[%emt 0:04:00]} 16. Rac1 {[%emt 0:12:10]} e5 {[%emt 0:13:56]} 17. dxc5 {[%emt 0:01:34]} Bxc5 {[%emt 0:00:09]} 18. Qe4 {[%emt 0:00:14]} Ne6 {[%emt 0:00:38]} 19. Be3 {[%emt 0:00:08]} Bxe3 {[%emt 0:03:38]} 20. Qxe3 {[%emt 0:00:14]} f6 {[%emt 0:00:31]} 21. g3 {[%emt 0:05:45]} Rad8 {[%emt 0:02:54]} 22. Rd5 {[%emt 0:00:38]} Qc6 {[%emt 0:05:23]} 23. Rxd8 {[%emt 0:07:11]} Rxd8 {[%emt 0:00:14]} 24. b3 {[%emt 0:00:33]} e4 {[%emt 0:05:11]} 25. Ne1 {[%emt 0:00:06]} f5 {[%emt 0:00:29]} 26. Kf1 {[%emt 0:05:18]} Kf7 {[%emt 0:05:37]} 27. f3 {[%emt 0:01:20]} Qc5 {[%emt 0:00:55]} 28. Rc3 {[%emt 0:03:19]} Qe5 {[%emt 0:07:17]} 29. fxe4 {[%emt 0:01:00]} fxe4 {[%emt 0:00:02]} 30. Rc2 {[%emt 0:00:15]} Nd4 {[%emt 0:02:33]} 31. Rf2+ {[%emt 0:00:25]} Ke6 {[%emt 0:00:42]} 32. Rf4 {[%emt 0:00:36]} Nf5 {[%emt 0:02:09]} 33. Qxe4 {[%emt 0:00:09]} Qxe4 {[%emt 0:01:50]} 34. Rxe4+ {[%emt 0:00:09]} Kf6 {[%emt 0:00:15]} 35. Nf3 {[%emt 0:02:01]} Rd1+ {[%emt 0:00:17]} 36. Re1 {[%emt 0:00:13]} Rd3 {[%emt 0:00:26]} 37. Kf2 {[%emt 0:00:37]} g5 {[%emt 0:00:37]} 38. g4 {[%emt 0:07:12]} Ng7 {[%emt 0:01:02]} 39. h4 {[%emt 0:03:13]} gxh4 {[%emt 0:00:27]} 40. Rh1 {[%emt 0:00:00]} Rc3 {[%emt 0:00:00]} 41. Rxh4 {[%emt 0:07:39]} Rc2+ {[%emt 0:02:09]} 42. Ke3 {[%emt 0:01:29]} Rxa2 {[%emt 0:01:34]} 43. Rh6+ {[%emt 0:00:33]} Kf7 {[%emt 0:00:14]} 44. Rxh7 {[%emt 0:00:13]} *

[Event "21st Sants Open 2019"]
[Site "Cotxeres de Sants"]
[Date "2019.08.29"]
[Round "7.14"]
[White "Cuartas, Jaime Alexander"]
[Black "Guerra Rivera, Salvador"]
[Result "*"]
[ECO "D30"]
[WhiteElo "2530"]
[BlackElo "2344"]
[Annotator "ChessBase"]
[PlyCount "53"]
[EventDate "2019.08.22"]
[EventType "swiss"]
[EventCountry "ESP"]
[SourceTitle "playchess.com"]
[Source "ChessBase"]
[SourceQuality "1"]
[TimeControl "40/5400+30:1800+30"]

1. d4 {[%emt 0:00:00]} Nf6 {[%emt 0:01:49]} 2. c4 {[%emt 0:00:00]} e6 {[%emt 0:00:35]} 3. Nf3 {[%emt 0:00:00]} d5 {[%emt 0:03:15]} 4. Bg5 {[%emt 0:00:00]} dxc4 {[%emt 0:01:02]} 5. e4 {[%emt 0:00:08]} h6 {[%emt 0:01:18]} 6. Bxf6 {[%emt 0:00:56]} Qxf6 {[%emt 0:04:56]} 7. Nc3 {[%emt 0:11:18]} Bb4 8. Bxc4 {[%emt 0:00:51]} c5 {[%emt 0:05:26]} 9. O-O {[%emt 0:02:17]} Bxc3 10. bxc3 {[%emt 0:00:10]} cxd4 {[%emt 0:04:15]} 11. cxd4 {[%emt 0:00:21]} O-O 12. Qd3 Nc6 {[%emt 0:06:43]} 13. e5 {[%emt 0:20:45]} Qe7 {[%emt 0:13:36]} 14. Qe4 Rd8 {[%emt 0:00:08]} 15. Bd3 {[%emt 0:03:02]} g6 {[%emt 0:05:27]} 16. Rad1 {[%emt 0:15:35]} Bd7 17. Bb1 Be8 {[%emt 0:11:30]} 18. h4 {[%emt 0:00:53]} Nb4 {[%emt 0:05:15]} 19. h5 {[%emt 0:06:23]} Nd5 {[%emt 0:11:59]} 20. Rc1 Rac8 21. Rxc8 {[%emt 0:19:10]} Rxc8 {[%emt 0:03:04]} 22. hxg6 fxg6 {[%emt 0:00:28]} 23. Nh4 {[%emt 0:00:47]} Qg7 {[%emt 0:04:55]} 24. Qg4 {[%emt 0:02:19]} Rc6 {[%emt 0:08:57]} 25. Be4 {[%emt 0:03:32]} g5 {[%emt 0:05:07]} 26. Nf5 Qf8 27. Bxd5 {[%emt 0:05:04]} *

[Event "21st Sants Open 2019"]
[Site "Cotxeres de Sants"]
[Date "2019.08.29"]
[Round "7.15"]
[White "Romero Moreno, Felix"]
[Black "Todts, Benny"]
[Result "1-0"]
[ECO "A57"]
[WhiteElo "1914"]
[BlackElo "1932"]
[Annotator "NA"]
[PlyCount "51"]
[EventDate "2019.08.22"]
[EventType "swiss"]
[EventCountry "ESP"]
[SourceTitle "playchess.com"]
[Source "ChessBase"]
[SourceQuality "1"]
[TimeControl "40/5400+30:1800+30"]

1. d4 {[%emt 0:00:00]} c5 {[%emt 0:00:00]} 2. d5 {[%emt 0:00:00]} Nf6 {[%emt 0:00:00]} 3. c4 {[%emt 0:00:00]} b5 {[%emt 0:00:00]} 4. cxb5 {[%emt 0:00:19]} a6 {[%emt 0:00:00]} 5. b6 {[%emt 0:00:13]} d6 {[%emt 0:00:27]} 6. Nc3 {[%emt 0:00:12]} Nbd7 {[%emt 0:00:52]} 7. e4 {[%emt 0:00:20]} g6 {[%emt 0:00:28]} 8. Nf3 {[%emt 0:00:37]} Bg7 {[%emt 0:00:49]} 9. Nd2 {[%emt 0:02:06]} Nxb6 {[%emt 0:01:32]} 10. a4 {[%emt 0:02:16]} a5 {[%emt 0:01:09]} 11. Be2 {[%emt 0:00:53]} O-O {[%emt 0:00:31]} 12. O-O {[%emt 0:00:18]} Ba6 {[%emt 0:02:09]} 13. Bxa6 {[%emt 0:03:46]} Rxa6 {[%emt 0:00:54]} 14. Qe2 {[%emt 0:03:16]} Ra8 {[%emt 0:02:23]} 15. Ra3 {[%emt 0:15:04]} Qd7 {[%emt 0:15:04]} 16. h3 {[%emt 0:10:41]} Rfb8 {[%emt 0:08:28]} 17. f4 {[%emt 0:07:10]} Ne8 {[%emt 0:10:34]} 18. f5 {[%emt 0:07:49]} e6 {[%emt 0:13:46]} 19. dxe6 {[%emt 0:07:50]} fxe6 {[%emt 0:00:08]} 20. fxg6 {[%emt 0:00:31]} Bd4+ {[%emt 0:06:28]} 21. Kh1 {[%emt 0:00:36]} Nf6 {[%emt 0:03:45]} 22. gxh7+ {[%emt 0:01:19]} Qxh7 {[%emt 0:00:28]} 23. Nb5 {[%emt 0:04:14]} Be5 {[%emt 0:01:13]} 24. Nxd6 {[%emt 0:02:51]} Rd8 {[%emt 0:08:26]} 25. N2c4 {[%emt 0:05:11]} Nxc4 26. Nxc4 1-0

[Event "21st Sants Open 2019"]
[Site "Cotxeres de Sants"]
[Date "2019.08.29"]
[Round "7.16"]
[White "Planella Sanchez, Jordi"]
[Black "Morais Carreras, Javier"]
[Result "1-0"]
[ECO "D00"]
[WhiteElo "1919"]
[BlackElo "1939"]
[Annotator "NA"]
[PlyCount "115"]
[EventDate "2019.08.22"]
[EventType "swiss"]
[EventCountry "ESP"]
[SourceTitle "playchess.com"]
[Source "ChessBase"]
[SourceQuality "1"]
[TimeControl "40/5400+30:1800+30"]

1. d4 {[%emt 0:04:36]} d5 {[%emt 0:00:00]} 2. Bf4 {[%emt 0:00:04]} Nf6 {[%emt 0:00:00]} 3. e3 {[%emt 0:00:04]} e6 {[%emt 0:00:05]} 4. Bd3 {[%emt 0:00:09]} c5 {[%emt 0:00:14]} 5. Nd2 {[%emt 0:02:53]} Nc6 {[%emt 0:00:13]} 6. c3 {[%emt 0:00:13]} Bd6 {[%emt 0:00:31]} 7. Ngf3 {[%emt 0:02:14]} Bxf4 {[%emt 0:05:19]} 8. exf4 {[%emt 0:00:05]} Qc7 {[%emt 0:05:58]} 9. g3 {[%emt 0:03:23]} b6 {[%emt 0:04:58]} 10. O-O {[%emt 0:11:18]} O-O {[%emt 0:01:15]} 11. Rc1 {[%emt 0:04:16]} a5 {[%emt 0:04:10]} 12. Qe2 {[%emt 0:05:03]} c4 {[%emt 0:01:02]} 13. Bb1 {[%emt 0:02:35]} Ba6 {[%emt 0:05:03]} 14. h3 {[%emt 0:05:38]} Qd6 {[%emt 0:02:10]} 15. Kg2 {[%emt 0:02:37]} b5 {[%emt 0:06:51]} 16. Ne5 {[%emt 0:01:33]} b4 {[%emt 0:00:59]} 17. Nxc6 {[%emt 0:00:14]} Qxc6 {[%emt 0:00:32]} 18. Nf3 {[%emt 0:05:13]} Qd6 {[%emt 0:02:32]} 19. Ne5 {[%emt 0:00:29]} a4 {[%emt 0:03:03]} 20. g4 {[%emt 0:08:53]} g6 {[%emt 0:06:16]} 21. h4 {[%emt 0:12:54]} Ne8 {[%emt 0:19:09]} 22. Qe3 {[%emt 0:05:49]} f6 {[%emt 0:01:40]} 23. Nf3 {[%emt 0:00:44]} f5 {[%emt 0:01:43]} 24. g5 {[%emt 0:01:01]} Ng7 {[%emt 0:01:02]} 25. Rfe1 {[%emt 0:01:54]} Nh5 {[%emt 0:03:40]} 26. Ne5 {[%emt 0:00:32]} Rfe8 {[%emt 0:01:20]} 27. Bc2 {[%emt 0:00:13]} a3 {[%emt 0:01:23]} 28. bxa3 {[%emt 0:01:27]} bxc3 {[%emt 0:00:46]} 29. Bd1 {[%emt 0:00:22]} Ng7 {[%emt 0:01:35]} 30. Rxc3 {[%emt 0:01:04]} Rab8 {[%emt 0:00:53]} 31. h5 {[%emt 0:00:22]} gxh5 {[%emt 0:03:55]} 32. Rh1 {[%emt 0:01:04]} Rb1 {[%emt 0:03:53]} 33. Rc1 {[%emt 0:01:28]} Rxc1 {[%emt 0:02:07]} 34. Qxc1 {[%emt 0:00:14]} Qb6 {[%emt 0:00:13]} 35. Nd7 {[%emt 0:01:07]} Qxd4 {[%emt 0:00:28]} 36. Nf6+ {[%emt 0:00:12]} Kf8 {[%emt 0:01:02]} 37. Nxe8 {[%emt 0:00:31]} Nxe8 {[%emt 0:01:48]} 38. Qe3 {[%emt 0:01:31]} Qe4+ {[%emt 0:06:13]} 39. Bf3 {[%emt 0:00:16]} Qxe3 {[%emt 0:02:30]} 40. fxe3 {[%emt 0:00:00]} Nd6 {[%emt 0:00:00]} 41. a4 {[%emt 0:04:19]} Bb7 {[%emt 0:05:13]} 42. Rxh5 {[%emt 0:00:19]} Bc6 {[%emt 0:01:12]} 43. a5 {[%emt 0:03:08]} c3 {[%emt 0:00:37]} 44. Kf2 {[%emt 0:01:29]} Nc4 {[%emt 0:01:48]} 45. Rh1 {[%emt 0:03:09]} Nb2 {[%emt 0:01:23]} 46. a6 {[%emt 0:04:02]} Ke7 {[%emt 0:19:26]} 47. Rxh7+ {[%emt 0:01:24]} Kd6 {[%emt 0:00:23]} 48. Rh1 {[%emt 0:00:09]} c2 {[%emt 0:01:11]} 49. Ke2 {[%emt 0:01:35]} Nd1 {[%emt 0:00:53]} 50. Rxd1 {[%emt 0:03:42]} Bb5+ {[%emt 0:00:34]} 51. Kd2 {[%emt 0:00:12]} cxd1=Q+ {[%emt 0:00:17]} 52. Bxd1 {[%emt 0:00:14]} Bxa6 {[%emt 0:00:22]} 53. Be2 {[%emt 0:00:08]} Bb7 {[%emt 0:00:32]} 54. Bd3 {[%emt 0:01:08]} Bc6 {[%emt 0:00:24]} 55. Kc3 {[%emt 0:00:07]} Kc5 {[%emt 0:01:34]} 56. Be2 {[%emt 0:00:09]} Be8 {[%emt 0:00:22]} 57. a3 {[%emt 0:00:04]} Kd6 {[%emt 0:01:35]} 58. Kd4 1-0

[Event "21st Sants Open 2019"]
[Site "Cotxeres de Sants"]
[Date "2019.08.29"]
[Round "7.17"]
[White "Garcia Ruiz, Adrian"]
[Black "Perez Garcia, Jose Miguel"]
[Result "1-0"]
[ECO "B90"]
[WhiteElo "1933"]
[BlackElo "1904"]
[Annotator "NA"]
[PlyCount "69"]
[EventDate "2019.08.22"]
[EventType "swiss"]
[EventCountry "ESP"]
[SourceTitle "playchess.com"]
[Source "ChessBase"]
[SourceQuality "1"]
[TimeControl "40/5400+30:1800+30"]

1. e4 {[%emt 0:00:00]} c5 {[%emt 0:01:29]} 2. Nf3 {[%emt 0:00:00]} d6 {[%emt 0:00:25]} 3. d4 {[%emt 0:00:00]} cxd4 {[%emt 0:00:08]} 4. Nxd4 {[%emt 0:00:00]} Nf6 {[%emt 0:00:19]} 5. Nc3 {[%emt 0:00:00]} a6 {[%emt 0:00:21]} 6. Bc4 {[%emt 0:00:09]} e5 {[%emt 0:02:19]} 7. Nf3 {[%emt 0:00:18]} Be7 {[%emt 0:00:20]} 8. O-O {[%emt 0:00:25]} O-O {[%emt 0:01:10]} 9. h3 {[%emt 0:00:29]} Nc6 {[%emt 0:00:58]} 10. Re1 {[%emt 0:01:03]} b5 {[%emt 0:05:10]} 11. Bb3 {[%emt 0:00:21]} Na5 {[%emt 0:02:42]} 12. Nd5 {[%emt 0:04:06]} Nxb3 {[%emt 0:03:07]} 13. axb3 {[%emt 0:00:04]} Nxd5 {[%emt 0:00:57]} 14. exd5 {[%emt 0:03:55]} f5 {[%emt 0:03:12]} 15. c4 {[%emt 0:00:14]} bxc4 {[%emt 0:02:23]} 16. bxc4 {[%emt 0:00:03]} Qb6 {[%emt 0:02:01]} 17. Ng5 {[%emt 0:01:15]} f4 {[%emt 0:06:25]} 18. Ne6 {[%emt 0:01:16]} Bxe6 {[%emt 0:06:18]} 19. dxe6 {[%emt 0:00:03]} Rac8 {[%emt 0:02:24]} 20. Qa4 {[%emt 0:05:14]} Rc6 {[%emt 0:00:49]} 21. Qa5 {[%emt 0:05:22]} Qb7 {[%emt 0:04:21]} 22. Qd5 {[%emt 0:02:33]} Qc8 {[%emt 0:01:40]} 23. b3 {[%emt 0:00:21]} f3 {[%emt 0:03:16]} 24. Ba3 {[%emt 0:08:12]} fxg2 {[%emt 0:00:22]} 25. c5 {[%emt 0:00:02]} dxc5 {[%emt 0:01:08]} 26. Rxe5 {[%emt 0:03:07]} Rd8 {[%emt 0:02:04]} 27. Qc4 {[%emt 0:02:18]} Rd4 {[%emt 0:01:38]} 28. Qe2 {[%emt 0:01:11]} Qf8 {[%emt 0:03:01]} 29. Bb2 {[%emt 0:00:56]} Rb4 {[%emt 0:05:45]} 30. Re3 {[%emt 0:01:40]} Qf5 {[%emt 0:08:05]} 31. Rxa6 {[%emt 0:06:43]} Rc8 {[%emt 0:06:29]} 32. Ra7 {[%emt 0:00:48]} Re8 {[%emt 0:01:02]} 33. Rf3 {[%emt 0:38:04]} Qd5 {[%emt 0:07:42]} 34. Rd3 {[%emt 0:05:00]} Qf5 {[%emt 0:01:11]} 35. Rxe7 1-0

[Event "21st Sants Open 2019"]
[Site "Cotxeres de Sants"]
[Date "2019.08.29"]
[Round "7.19"]
[White "Paton Alvarez, Ivan"]
[Black "Juncosa Padros, Ernest"]
[Result "1-0"]
[ECO "C90"]
[WhiteElo "1544"]
[BlackElo "1590"]
[Annotator "NA"]
[PlyCount "149"]
[EventDate "2019.08.22"]
[EventType "swiss"]
[EventCountry "ESP"]
[SourceTitle "playchess.com"]
[Source "ChessBase"]
[SourceQuality "1"]
[TimeControl "40/5400+30:1800+30"]

1. e4 {[%emt 0:00:00]} e5 {[%emt 0:00:00]} 2. Nf3 {[%emt 0:00:00]} Nc6 {[%emt 0:00:00]} 3. Bb5 {[%emt 0:00:00]} a6 {[%emt 0:00:01]} 4. Ba4 {[%emt 0:00:00]} Nf6 {[%emt 0:00:10]} 5. d3 {[%emt 0:00:00]} b5 {[%emt 0:00:22]} 6. Bb3 {[%emt 0:00:05]} Be7 {[%emt 0:00:19]} 7. O-O {[%emt 0:00:31]} d6 {[%emt 0:00:23]} 8. Re1 {[%emt 0:02:03]} O-O {[%emt 0:00:50]} 9. c3 {[%emt 0:01:10]} Na5 {[%emt 0:01:15]} 10. Bc2 {[%emt 0:00:26]} c5 {[%emt 0:01:04]} 11. Nbd2 {[%emt 0:03:49]} Qc7 {[%emt 0:02:01]} 12. Nf1 {[%emt 0:02:36]} Bb7 {[%emt 0:01:41]} 13. Ng3 {[%emt 0:01:51]} Rfe8 {[%emt 0:01:07]} 14. Nf5 {[%emt 0:02:37]} Bf8 {[%emt 0:00:35]} 15. Bg5 {[%emt 0:02:35]} Nd7 {[%emt 0:07:38]} 16. N3h4 {[%emt 0:19:43]} Nc6 {[%emt 0:05:46]} 17. Qg4 {[%emt 0:02:36]} g6 {[%emt 0:13:40]} 18. Nh6+ {[%emt 0:15:45]} Kg7 {[%emt 0:05:47]} 19. N4f5+ {[%emt 0:15:45]} Kh8 20. Nxd6 {[%emt 0:03:41]} Bxd6 {[%emt 0:08:07]} 21. Qxd7 {[%emt 0:00:17]} Kg7 {[%emt 0:01:17]} 22. Qg4 {[%emt 0:03:38]} f6 {[%emt 0:03:37]} 23. Bd2 {[%emt 0:00:39]} Bc8 {[%emt 0:00:14]} 24. Qg3 {[%emt 0:01:29]} Be6 {[%emt 0:02:05]} 25. h4 {[%emt 0:07:08]} Qd7 {[%emt 0:02:25]} 26. Bd1 {[%emt 0:01:59]} Bc7 {[%emt 0:01:00]} 27. Bg4 {[%emt 0:06:24]} Bxg4 {[%emt 0:01:13]} 28. Nxg4 {[%emt 0:00:41]} Rad8 {[%emt 0:00:21]} 29. Rad1 {[%emt 0:01:02]} Re6 {[%emt 0:01:00]} 30. f3 {[%emt 0:02:54]} Rd6 {[%emt 0:00:44]} 31. Nf2 {[%emt 0:00:10]} c4 {[%emt 0:00:40]} 32. h5 {[%emt 0:00:42]} cxd3 {[%emt 0:00:30]} 33. Be3 {[%emt 0:01:11]} Qe6 {[%emt 0:02:09]} 34. Bc5 {[%emt 0:01:35]} R6d7 {[%emt 0:00:00]} 35. b3 {[%emt 0:01:03]} Na5 {[%emt 0:00:48]} 36. Rd2 {[%emt 0:00:48]} Bb6 {[%emt 0:00:35]} 37. Bxb6 {[%emt 0:00:32]} Qxb6 {[%emt 0:00:03]} 38. Red1 {[%emt 0:00:36]} Nc6 {[%emt 0:00:37]} 39. Kh1 {[%emt 0:00:27]} b4 {[%emt 0:00:28]} 40. c4 {[%emt 0:00:00]} Qe3 {[%emt 0:00:00]} 41. Nh3 {[%emt 0:10:32]} Na5 {[%emt 0:06:54]} 42. Qf2 {[%emt 0:00:58]} Qxf2 {[%emt 0:27:05]} 43. Nxf2 {[%emt 0:00:02]} gxh5 {[%emt 0:00:11]} 44. Rxd3 {[%emt 0:00:06]} Rxd3 {[%emt 0:00:07]} 45. Rxd3 {[%emt 0:00:05]} Rc8 {[%emt 0:00:23]} 46. Rd7+ {[%emt 0:00:29]} Kg6 {[%emt 0:00:24]} 47. Ra7 {[%emt 0:00:13]} Rc6 {[%emt 0:01:16]} 48. Nd3 {[%emt 0:00:09]} Rb6 {[%emt 0:00:35]} 49. Nc5 {[%emt 0:01:34]} Kg5 {[%emt 0:01:09]} 50. Rxa6 {[%emt 0:01:53]} Rxa6 {[%emt 0:00:51]} 51. Nxa6 {[%emt 0:00:01]} Nc6 {[%emt 0:00:12]} 52. Kg1 {[%emt 0:00:43]} Kf4 {[%emt 0:00:18]} 53. Kf2 {[%emt 0:00:03]} h4 {[%emt 0:00:10]} 54. Nc5 {[%emt 0:00:20]} Kg5 {[%emt 0:01:36]} 55. Ne6+ {[%emt 0:01:09]} Kg6 {[%emt 0:01:59]} 56. Ke3 {[%emt 0:00:37]} f5 {[%emt 0:01:03]} 57. Nc5 {[%emt 0:03:16]} Kg5 {[%emt 0:00:24]} 58. exf5 {[%emt 0:00:58]} Kxf5 {[%emt 0:00:09]} 59. Ne4 {[%emt 0:00:01]} h5 {[%emt 0:01:19]} 60. Nf2 {[%emt 0:01:28]} Nd4 {[%emt 0:04:00]} 61. Nd3 {[%emt 0:00:48]} Nc6 {[%emt 0:00:34]} 62. f4 {[%emt 0:00:50]} exf4+ {[%emt 0:01:43]} 63. Nxf4 {[%emt 0:00:24]} Kg4 {[%emt 0:00:04]} 64. Ke4 {[%emt 0:01:11]} Kg3 {[%emt 0:02:10]} 65. Kf5 {[%emt 0:04:11]} Nd4+ {[%emt 0:10:20]} 66. Kg5 {[%emt 0:00:40]} Nc6 {[%emt 0:02:42]} 67. Nxh5+ {[%emt 0:08:32]} Kxg2 {[%emt 0:00:10]} 68. Kxh4 {[%emt 0:00:07]} Kf3 {[%emt 0:00:02]} 69. Kg5 {[%emt 0:00:11]} Ke4 70. Kf6 Ne5 {[%emt 0:01:00]} 71. Ng3+ {[%emt 0:00:51]} Kd4 {[%emt 0:00:09]} 72. Nf5+ {[%emt 0:00:33]} Ke4 {[%emt 0:00:10]} 73. Ke6 {[%emt 0:01:01]} Kf4 {[%emt 0:00:22]} 74. c5 {[%emt 0:00:36]} Ke4 {[%emt 0:00:10]} 75. Ne7 {[%emt 0:00:32] Kd5+} 1-0

[Event "21st Sants Open 2019"]
[Site "Cotxeres de Sants"]
[Date "2019.08.30"]
[Round "8.1"]
[White "Neef, Maximilian"]
[Black "Arjun Kalyan"]
[Result "1/2-1/2"]
[ECO "A07"]
[WhiteElo "2481"]
[BlackElo "2482"]
[Annotator "ChessBase"]
[PlyCount "21"]
[EventDate "2019.08.22"]
[EventType "swiss"]
[EventCountry "ESP"]
[SourceTitle "playchess.com"]
[Source "ChessBase"]
[SourceQuality "1"]
[TimeControl "40/5400+30:1800+30"]

1. Nf3 {[%emt 0:00:00]} d5 {[%emt 0:00:00]} 2. g3 {[%emt 0:00:00]} Bg4 {[%emt 0:00:00]} 3. Bg2 {[%emt 0:00:00]} c6 {[%emt 0:00:03]} 4. O-O {[%emt 0:00:00]} Nf6 {[%emt 0:00:19]} 5. h3 {[%emt 0:00:26]} Bxf3 {[%emt 0:00:22]} 6. Bxf3 {[%emt 0:00:09]} e5 {[%emt 0:00:33]} 7. d3 {[%emt 0:07:30]} Bc5 {[%emt 0:01:04]} 8. e4 {[%emt 0:07:55]} O-O {[%emt 0:00:43]} 9. Nd2 {[%emt 0:02:00]} Nbd7 {[%emt 0:03:19]} 10. exd5 {[%emt 0:11:11]} Nxd5 {[%emt 0:00:48]} 11. Ne4 {[%emt 0:07:33]} 1/2-1/2